{"text_format":"2","workbook":"xlsx","n_sheets":1,"sheets":["Rake method"],"not_rendered":{"charts":2,"images":1,"macros":0,"external_links":0,"defined_names":0,"comments":0,"pivot_tables":0},"unopened":[],"bounds":{"document_bytes":16777216,"sheet_cells":100000,"run_cost":"one","rows_first":2000,"rows_last":500,"rows_between":2000,"halvings":0,"cell_chars":16384,"cell_head_chars":4096},"cells_cut":0,"cells_raw":0,"read":"whole","date_system":"1900"}

{"sheet":"Rake method","index":0,"n_rows":139,"n_cols":10,"rows_kept":139,"cut":false,"hidden":false,"merged":[[107,9,109,19],[138,9,140,19],[109,1,110,1],[83,1,84,1],[83,3,84,3],[83,4,84,4],[83,5,84,5],[109,2,109,6],[61,0,61,2],[0,0,0,3],[68,0,68,2],[81,0,81,7],[83,2,84,2]]}
["Name of the survey site"]
["Recognisable point:"]
["Beach width: "]
["Type of sediments:"]
["Usage:",null,"Rural/touristic"]
["Coordinates:"]
[]
["Sampling scheme"]
{"$rows_empty":46}
["Surveyor: ",null,"????????"]
["Contacts: ",null,"????????"]
[]
[]
["Sampling date:",null,"dd/mm/yy"]
["Start of the survey",null,"00:00:00"]
["End of the survey",null,"00:00:00"]
["Weather conditions"]
["wind speed:",null,"m/s"]
["wind direction:",null,"S,W,N,E"]
["Air temp.:",null," °C"]
["Other:",null,"sunny with coulds, windy"]
[]
[]
["Coast info"]
["Coastal conditions:"]
[]
["Type of sediments:"]
[">>  in tidal zone",null,"sand "]
[">>  in middle section",null,"sand "]
[">>  in upper beach",null,"sand "]
[]
[]
["Methodology:",null,"Rake method"]
[]
[]
[]
["Sampling information"]
[]
[null,"Trnasect No.","Micro (2-5 mm)","Meso \n(5-25 mm)","Macro","Total"]
[]
[null,"T1",null,null,null,{"$f":"SUM(C86:E86)","v":0}]
[null,"T2",null,null,null,{"$f":"SUM(C87:E87)","v":0}]
[null,"T3",null,null,null,0]
[null,"T4",null,null,null,0]
[null,"T5",null,null,null,0]
[null,"T6",null,null,null,0]
[null,"T7",null,null,null,0]
[null,"T8",null,null,null,0]
[null,"T9",null,null,null,0]
[null,"T10",null,null,null,0]
[null,"T11",null,null,null,0]
[null,"T12",null,null,null,0]
[null,"T13",null,null,null,0]
[null,"T14",null,null,null,0]
[null,"T15",null,null,null,0]
[null,"T16",null,null,null,0]
[null,"T17",null,null,null,0]
[null,"T18",null,null,null,0]
[null,"T19",null,null,null,0]
[null,"T20",null,null,null,0]
[]
[]
[{"$nulls":9},"Short description of the graph above"]
[]
[null,"Trnasect No.","Categories of material"]
[null,null,"plastic","glass","metal","paper","other"]
[null,"T1"]
[null,"T2"]
[null,"T3"]
[null,"T4"]
[null,"T5"]
[null,"T6"]
[null,"T7"]
[null,"T8"]
[null,"T9"]
[null,"T10"]
[null,"T11"]
[null,"T12"]
[null,"T13"]
[null,"T14"]
[null,"T15"]
[null,"T16"]
[null,"T17"]
[null,"T18"]
[null,"T19"]
[null,"T20"]
[null,"TOTAL",{"$f":"SUM(C112:C131)","v":0},{"$f":"SUM(D112:D131)","v":0},0,0,0]
[]
[]
[]
[]
[]
[]
[{"$nulls":9},"Short description of the graph above"]